bitfinex/quotes_BTCUSD_20251016
["timestamp","ask_amount","ask_price","bid_price","bid_amount"]
[1760582959225,0.94224121,111680.0,111670.0,0.38122925]
[1760582959435,0.72697329,111680.0,111670.0,0.26878925]
[1760582960026,0.72697329,111680.0,111670.0,0.38122925]
[1760582960233,0.72697329,111680.0,111670.0,0.26878925]
[1760582960467,0.72697329,111680.0,111670.0,0.38122925]
[1760582960808,0.72697329,111680.0,111670.0,0.26878925]
[1760582961035,0.72697329,111680.0,111670.0,0.38118925]
[1760582961467,0.72697329,111680.0,111670.0,0.26878925]
[1760582961820,0.73697329,111680.0,111670.0,0.38118925]
[1760582962019,0.73697329,111680.0,111670.0,0.26878925]
[1760582962327,0.39216252,111680.0,111670.0,0.38118925]
[1760582962659,0.39216252,111680.0,111670.0,0.26878925]
[1760582963063,0.39216252,111680.0,111670.0,0.38118925]
[1760582963295,0.00058346,111680.0,111670.0,0.38118925]
[1760582964303,0.00058346,111680.0,111670.0,0.26878925]
[1760582964503,0.00058346,111680.0,111670.0,0.38122925]
[1760582965124,0.00058346,111680.0,111670.0,0.38118925]
[1760582965490,0.00058346,111680.0,111670.0,0.79895059]
[1760582966511,0.00058346,111680.0,111670.0,0.41737153]
[1760582967426,0.00014929,111690.0,111670.0,1.52052965]
[1760582967626,0.00014929,111690.0,111680.0,1.08602191]
[1760582967824,0.00014929,111690.0,111680.0,1.06811361]
[1760582968170,0.00073266,111690.0,111680.0,1.18067361]
[1760582969097,0.00073266,111690.0,111680.0,0.45400569]
[1760582969307,0.00073266,111690.0,111680.0,1.21712381]
[1760582970277,0.00073266,111690.0,111680.0,1.10460381]
[1760582970493,1e-08,111690.0,111680.0,1.55712381]
[1760582970919,1e-08,111690.0,111680.0,1.55812381]
[1760582971119,1e-08,111690.0,111680.0,1.44660381]
[1760582971318,1e-08,111690.0,111680.0,1.55712381]
[1760582971517,1e-08,111690.0,111680.0,1.44460381]
[1760582971723,1e-08,111690.0,111680.0,1.55912381]
[1760582971954,1e-08,111690.0,111680.0,1.55812381]
[1760582972815,1e-08,111690.0,111680.0,1.56171197]
[1760582973032,1e-08,111690.0,111680.0,1.56071197]
[1760582973236,1e-08,111690.0,111680.0,1.56171197]
[1760582973435,1e-08,111690.0,111680.0,1.56271197]
[1760582975459,1e-08,111690.0,111680.0,1.06861291]
[1760582975833,1e-08,111690.0,111680.0,0.79955385]
[1760582976074,1e-08,111690.0,111680.0,1.18113291]
[1760582976511,1e-08,111690.0,111680.0,1.23485291]
[1760582976723,1e-08,111690.0,111680.0,1.12237291]
[1760582976904,1e-08,111690.0,111680.0,1.23485291]
[1760582977043,1e-08,111690.0,111680.0,1.12237291]
[1760582977486,1e-08,111690.0,111680.0,1.23485291]
[1760582978505,1e-08,111690.0,111680.0,1.12237291]
[1760582979894,1e-08,111690.0,111680.0,1.23485291]
[1760582980331,1e-08,111690.0,111680.0,1.12237291]
[1760582980551,1e-08,111690.0,111680.0,1.23485291]
[1760582981063,1e-08,111690.0,111680.0,1.12237291]
[1760582981956,1e-08,111690.0,111680.0,1.23485291]
[1760582982316,1e-08,111690.0,111680.0,1.12237291]
[1760582982673,1e-08,111690.0,111680.0,1.23485291]
[1760582982886,1e-08,111690.0,111680.0,1.12237291]
[1760582984080,1e-08,111690.0,111680.0,0.85327385]
[1760582984293,1e-08,111690.0,111680.0,0.74079385]
[1760582984487,1e-08,111690.0,111680.0,1.12237291]
[1760582984893,1e-08,111690.0,111680.0,1.23481291]
[1760582985326,1e-08,111690.0,111680.0,1.12237291]
[1760582985453,1e-08,111690.0,111680.0,1.23481291]
[1760582985662,1e-08,111690.0,111680.0,1.12237291]
[1760582985937,1e-08,111690.0,111680.0,0.74079385]
[1760582986096,1e-08,111690.0,111680.0,1.12237291]
[1760582987216,1e-08,111690.0,111680.0,1.23481291]
[1760582987381,1e-08,111690.0,111680.0,1.12237291]
[1760582988083,1e-08,111690.0,111680.0,0.85323385]
[1760582988273,1e-08,111690.0,111680.0,0.74079385]
[1760582988501,1e-08,111690.0,111680.0,1.23481291]
[1760582989291,1e-08,111690.0,111680.0,1.12237291]
[1760582989496,1e-08,111690.0,111680.0,1.19832271]
[1760582990129,1e-08,111690.0,111680.0,1.08588271]
[1760582990310,1e-08,111690.0,111680.0,0.70430365]
[1760582990511,1e-08,111690.0,111680.0,1.08588271]
[1760582991841,1e-08,111690.0,111680.0,1.19832271]
[1760582993169,1e-08,111690.0,111680.0,1.08588271]
[1760582993329,1e-08,111690.0,111680.0,1.57990177]
[1760582993527,1e-08,111690.0,111680.0,1.46746177]
[1760582994117,1e-08,111690.0,111680.0,1.57990177]
[1760582994316,1e-08,111690.0,111680.0,1.46746177]
[1760582995471,1e-08,111690.0,111680.0,1.08588271]
[1760582995724,1e-08,111690.0,111680.0,1.19832271]
[1760582995953,1e-08,111690.0,111680.0,1.19828271]
[1760582996844,1e-08,111690.0,111680.0,1.08588271]
[1760582997039,1e-08,111690.0,111680.0,1.19828271]
[1760582997273,1e-08,111690.0,111680.0,1.08588271]
[1760582997504,1e-08,111690.0,111680.0,1.19828271]
[1760582997793,1e-08,111690.0,111680.0,1.08588271]
[1760582998019,1e-08,111690.0,111680.0,1.19828271]
[1760582998257,1e-08,111690.0,111680.0,1.08588271]
[1760582998458,1e-08,111690.0,111680.0,1.57986177]
[1760582999108,1e-08,111690.0,111680.0,0.81670365]
[1760582999308,1e-08,111690.0,111680.0,1.57986177]
[1760583000027,1e-08,111690.0,111680.0,1.46746177]
[1760583000422,1e-08,111690.0,111680.0,1.57986177]
[1760583000630,0.38157907,111690.0,111680.0,0.32453321]
[1760583000850,0.38157907,111690.0,111680.0,0.43697321]
[1760583001084,0.38157907,111690.0,111680.0,0.32453321]
[1760583001312,0.38157907,111690.0,111680.0,0.43697321]
[1760583001550,0.38157907,111690.0,111680.0,0.36071549]
[1760583001967,0.38157907,111690.0,111680.0,0.47315549]
[1760583002171,0.38157907,111690.0,111680.0,0.36071549]
[1760583002588,0.41820646,111690.0,111680.0,0.47315549]
[1760583002801,0.41820646,111690.0,111680.0,0.36071549]
[1760583003203,0.41820646,111690.0,111680.0,0.47315549]
[1760583003530,0.41820646,111690.0,111680.0,0.35971549]
[1760583003731,0.0366274,111690.0,111680.0,0.35971549]
[1760583003934,0.41820646,111690.0,111680.0,0.35971549]
[1760583004143,0.41820646,111690.0,111680.0,0.35871549]
[1760583004522,0.41820646,111690.0,111680.0,0.47115549]
[1760583004916,0.41820646,111690.0,111680.0,0.35871549]
[1760583005384,0.41820646,111690.0,111680.0,0.32253321]
[1760583005385,0.97885258,111690.0,111680.0,0.32253321]
[1760583005580,0.9889013,111690.0,111680.0,0.25589012]
[1760583005804,0.9889013,111690.0,111680.0,0.14345012]
[1760583006003,0.60729788,111690.0,111680.0,0.25589012]
[1760583006164,0.60729788,111690.0,111680.0,0.14345012]
[1760583006502,0.60729788,111690.0,111680.0,0.43497321]
[1760583006702,0.60729788,111690.0,111680.0,0.32253321]
[1760583006909,0.60729788,111690.0,111680.0,0.43497321]
[1760583007317,0.41823082,111690.0,111680.0,0.32253321]
[1760583007725,0.41823082,111690.0,111680.0,0.43497321]
[1760583007953,0.41823082,111690.0,111680.0,0.32253321]
[1760583008297,0.41823082,111690.0,111680.0,0.43497321]
[1760583009077,0.59729788,111690.0,111680.0,0.32253321]
[1760583009280,0.59729788,111690.0,111680.0,0.43497321]
[1760583009394,0.59729788,111690.0,111680.0,0.32253321]
[1760583009839,0.59729788,111690.0,111680.0,0.43497321]
[1760583010012,0.59729788,111690.0,111680.0,0.25589012]
[1760583010229,0.59729788,111690.0,111680.0,0.43497321]
[1760583010431,0.59729788,111690.0,111680.0,0.25589012]
[1760583010959,0.59729788,111690.0,111680.0,0.43497321]
[1760583011176,0.59729788,111690.0,111680.0,0.32253321]
[1760583011381,0.59729788,111690.0,111680.0,0.43497321]
[1760583012009,0.59729788,111690.0,111680.0,0.32253321]
[1760583012231,0.59729788,111690.0,111680.0,0.43497321]
[1760583013557,0.0366274,111690.0,111680.0,0.38121321]
[1760583013773,0.41823082,111690.0,111680.0,0.38121321]
[1760583014583,0.59729788,111690.0,111680.0,0.38121321]
[1760583015189,0.41823082,111690.0,111680.0,0.38121321]
[1760583015346,0.0366274,111690.0,111680.0,0.26877321]
[1760583015822,0.5608438,111710.0,111700.0,0.17905102]
[1760583016028,0.03745996,111710.0,111700.0,0.26874114]
[1760583016219,0.03745996,111710.0,111700.0,0.38118114]
[1760583016952,0.0002,111710.0,111700.0,0.38118114]
[1760583017080,0.0002,111710.0,111700.0,0.26874114]
[1760583017289,0.0002,111710.0,111700.0,0.41736342]
[1760583017525,0.0002,111710.0,111700.0,0.30492342]
[1760583017730,0.0002,111710.0,111700.0,0.41736342]
[1760583018938,0.0002,111710.0,111700.0,0.30492342]
[1760583019210,0.0002,111710.0,111700.0,0.41736342]
[1760583019584,0.0002,111710.0,111700.0,0.79896684]
[1760583019998,0.0002,111710.0,111700.0,1.13896684]
[1760583020457,0.0002,111710.0,111700.0,0.75736342]
[1760583021528,0.56200491,111710.0,111700.0,0.1258724]
[1760583021735,0.56200491,111710.0,111700.0,0.08969012]
[1760583022275,0.56200491,111710.0,111700.0,0.20213012]
[1760583022653,0.56200491,111710.0,111700.0,0.08969012]
[1760583023238,0.56200491,111710.0,111700.0,0.22003522]
[1760583023558,0.56200491,111710.0,111700.0,0.08969012]
[1760583023768,0.56200491,111710.0,111700.0,0.22003522]
[1760583023971,0.17906706,111690.0,111670.0,0.25980618]
[1760583024146,0.56075952,111690.0,111680.0,0.39916151]
[1760583024400,0.1791561,111690.0,111680.0,0.26877321]
[1760583024752,0.1791561,111690.0,111680.0,0.38125321]
[1760583024951,0.1791561,111690.0,111680.0,0.26877321]
[1760583025307,8.904e-05,111690.0,111680.0,0.26877321]
[1760583026131,0.1791561,111690.0,111680.0,0.26877321]
[1760583026569,0.1791561,111690.0,111680.0,0.38125321]
[1760583027070,0.1791561,111690.0,111680.0,0.26877321]
[1760583027456,0.1791561,111690.0,111680.0,0.38125321]
[1760583027931,8.904e-05,111690.0,111680.0,0.38125321]
[1760583028186,8.904e-05,111690.0,111680.0,0.26877321]
[1760583028378,8.904e-05,111690.0,111680.0,0.38125321]
[1760583028555,8.904e-05,111690.0,111680.0,0.26877321]
[1760583028900,8.904e-05,111690.0,111680.0,0.38125321]
[1760583029098,8.904e-05,111690.0,111680.0,0.30495549]
[1760583029330,8.904e-05,111690.0,111680.0,0.41743549]
[1760583029534,8.904e-05,111690.0,111680.0,0.30495549]
[1760583029811,8.904e-05,111690.0,111680.0,0.41743549]
[1760583030511,8.904e-05,111690.0,111680.0,0.41743549]
[1760583032632,8.904e-05,111690.0,111680.0,0.30495549]
[1760583033079,8.904e-05,111690.0,111680.0,0.41743549]
[1760583033835,8.904e-05,111690.0,111680.0,0.30495549]
[1760583034038,8.904e-05,111690.0,111680.0,0.41739549]
[1760583034538,8.904e-05,111690.0,111680.0,0.30495549]
[1760583034737,8.904e-05,111690.0,111680.0,0.41739549]
[1760583035851,8.904e-05,111690.0,111680.0,0.30495549]
[1760583036417,8.904e-05,111690.0,111680.0,0.41739549]
[1760583037703,8.904e-05,111690.0,111680.0,0.30495549]
[1760583037861,8.904e-05,111690.0,111680.0,0.41739549]
[1760583038471,8.904e-05,111690.0,111680.0,0.30495549]
[1760583038872,8.904e-05,111690.0,111680.0,0.41739549]
[1760583040216,8.904e-05,111690.0,111680.0,0.30495549]
[1760583040763,8.904e-05,111690.0,111680.0,0.41739549]
[1760583040965,8.904e-05,111690.0,111680.0,0.2383124]
[1760583041389,8.904e-05,111690.0,111680.0,0.61991582]
[1760583041805,8.904e-05,111690.0,111680.0,0.68655891]
[1760583042604,8.904e-05,111690.0,111680.0,0.79899891]
[1760583043479,8.904e-05,111690.0,111680.0,0.79999891]
[1760583043864,8.904e-05,111690.0,111680.0,0.80099891]
[1760583044567,0.1791561,111690.0,111680.0,0.62191582]
[1760583044745,0.1791561,111690.0,111680.0,0.1278724]
[1760583044981,0.1791561,111690.0,111680.0,0.2582207]
[1760583045202,0.1791561,111690.0,111680.0,0.2403124]
[1760583045410,0.1791561,111690.0,111680.0,0.41939549]
[1760583045827,8.904e-05,111690.0,111680.0,0.41939549]
[1760583046254,8.904e-05,111690.0,111680.0,0.30695549]
[1760583046461,8.904e-05,111690.0,111680.0,0.41939549]
[1760583046948,8.904e-05,111690.0,111680.0,0.30695549]
[1760583047161,8.904e-05,111690.0,111680.0,0.41939549]
[1760583047365,8.904e-05,111690.0,111680.0,0.47315549]
[1760583047580,8.904e-05,111690.0,111680.0,0.85471891]
[1760583047796,8.904e-05,111690.0,111680.0,0.74231891]
[1760583048020,8.904e-05,111690.0,111680.0,0.85471891]
[1760583050061,8.904e-05,111690.0,111680.0,0.74231891]
[1760583050281,8.904e-05,111690.0,111680.0,1.08590735]
[1760583050486,8.904e-05,111690.0,111680.0,1.19830735]
[1760583051127,8.904e-05,111690.0,111680.0,1.08590735]
[1760583051762,8.904e-05,111690.0,111680.0,0.70430393]
[1760583052168,8.904e-05,111690.0,111680.0,1.08590735]
[1760583052440,8.904e-05,111690.0,111680.0,1.19830735]
[1760583052813,8.904e-05,111690.0,111680.0,1.08590735]
[1760583053627,8.904e-05,111690.0,111680.0,1.19830735]
[1760583053850,8.904e-05,111690.0,111680.0,1.08590735]
[1760583054203,8.904e-05,111690.0,111680.0,1.19830735]
[1760583054478,8.904e-05,111690.0,111680.0,1.08590735]
[1760583055002,8.904e-05,111690.0,111680.0,1.19830735]
[1760583055350,8.904e-05,111690.0,111680.0,1.08590735]
[1760583055553,8.904e-05,111690.0,111680.0,0.70430393]
[1760583055956,8.904e-05,111690.0,111680.0,0.81670393]
[1760583056164,8.904e-05,111690.0,111680.0,0.36430393]
[1760583056410,8.904e-05,111690.0,111680.0,0.32453321]
[1760583056599,8.904e-05,111690.0,111680.0,0.43693321]
[1760583056795,8.904e-05,111690.0,111680.0,0.47311549]
[1760583057055,8.904e-05,111690.0,111680.0,0.36071549]
[1760583057213,8.904e-05,111690.0,111680.0,0.47311549]
[1760583057627,8.904e-05,111690.0,111680.0,0.36071549]
[1760583057832,8.904e-05,111690.0,111680.0,0.47211549]
[1760583058009,0.17905139,111700.0,111690.0,0.17906706]
[1760583058227,0.17905139,111700.0,111690.0,0.26875718]
[1760583059478,0.17905139,111700.0,111690.0,0.38115718]
[1760583059673,0.17905139,111700.0,111690.0,0.26875718]
[1760583060437,0.17905139,111700.0,111690.0,0.38115718]
[1760583061074,0.17905139,111700.0,111690.0,0.26875718]
[1760583061785,0.17905139,111700.0,111690.0,0.38115718]
[1760583062510,0.17905139,111700.0,111690.0,0.26875718]
[1760583062642,0.17905139,111700.0,111690.0,0.38115718]
[1760583063070,0.17905139,111700.0,111690.0,0.26875718]
[1760583063483,0.17905139,111700.0,111690.0,0.38115718]
[1760583063948,0.17905139,111700.0,111690.0,0.26875718]
[1760583064328,0.17905139,111700.0,111690.0,0.38115718]
[1760583064538,0.17905139,111700.0,111690.0,0.08969012]
[1760583064788,0.17905139,111700.0,111690.0,0.28666388]
[1760583064975,0.17905139,111700.0,111690.0,0.38115718]
[1760583066318,0.17905139,111700.0,111690.0,0.26875718]
[1760583066519,0.17905139,111700.0,111690.0,0.38115718]
[1760583066931,0.17905139,111700.0,111690.0,0.26875718]
[1760583067138,0.17905139,111700.0,111690.0,0.38115718]
[1760583067341,0.56048659,111700.0,111690.0,0.38115718]
[1760583068798,0.17905139,111700.0,111690.0,0.38115718]
[1760583069027,0.56048659,111700.0,111690.0,0.26875718]
[1760583069264,0.56048659,111700.0,111690.0,0.38115718]
[1760583069479,0.56048659,111700.0,111690.0,0.26875718]
[1760583069859,0.56048659,111700.0,111690.0,0.38115718]
[1760583070062,0.56048659,111700.0,111690.0,0.26875718]
[1760583070466,0.56048659,111700.0,111690.0,0.38115718]
[1760583070929,0.56048659,111700.0,111690.0,0.26875718]
[1760583071702,0.55548659,111700.0,111690.0,0.38111718]
[1760583071904,0.55548659,111700.0,111690.0,0.08969012]
[1760583071905,0.93692179,111700.0,111690.0,0.08969012]
[1760583072133,0.94692179,111700.0,111690.0,0.08969012]
[1760583072519,0.94692179,111700.0,111690.0,0.20205012]
[1760583072720,0.94692179,111700.0,111690.0,0.08969012]
[1760583073548,0.17908309,111680.0,111670.0,0.05376]
[1760583073799,0.56051829,111680.0,111670.0,0.45300845]
[1760583074002,0.56051829,111680.0,111670.0,0.32269854]
[1760583074619,0.56051829,111680.0,111670.0,0.43505854]
[1760583074825,0.55551829,111680.0,111670.0,0.43505854]
[1760583075075,0.55551829,111680.0,111670.0,0.43509854]
[1760583075279,0.55551829,111680.0,111670.0,0.32269854]
[1760583075474,0.55551829,111680.0,111670.0,0.43509854]
[1760583075894,0.55551829,111680.0,111670.0,0.32269854]
[1760583076116,0.55551829,111680.0,111670.0,0.43505854]
[1760583076321,0.55551829,111680.0,111670.0,0.14359941]
[1760583076322,0.93695349,111680.0,111670.0,0.14359941]
[1760583076802,0.94695349,111680.0,111670.0,0.25599941]
[1760583077160,0.94695349,111680.0,111670.0,0.14359941]
[1760583077576,0.94695349,111680.0,111670.0,0.25599941]
[1760583077987,0.94695349,111680.0,111670.0,0.14359941]
[1760583078188,0.94695349,111680.0,111670.0,0.25599941]
[1760583078389,0.94695349,111680.0,111670.0,0.14359941]
[1760583078920,0.18408309,111680.0,111670.0,0.14359941]
[1760583079173,0.90779151,111680.0,111670.0,0.14359941]
[1760583079383,0.56051614,111690.0,111670.0,0.34060845]
[1760583079592,0.56051614,111690.0,111680.0,0.26877321]
[1760583079795,0.56050226,111690.0,111680.0,0.20209012]
[1760583080064,0.3814352,111690.0,111680.0,0.38117321]
[1760583080265,0.56443914,111700.0,111680.0,0.38117321]
[1760583080473,0.56050226,111690.0,111680.0,0.26877321]
[1760583080687,0.56050226,111690.0,111680.0,0.08969012]
[1760583080901,0.56050226,111690.0,111680.0,0.10759842]
[1760583081369,0.17906706,111690.0,111680.0,0.21999842]
[1760583081581,0.56050226,111690.0,111680.0,0.26877321]
[1760583081758,0.56050226,111690.0,111680.0,0.38117321]
[1760583081996,0.18300394,111700.0,111690.0,0.17906706]
[1760583082203,0.56048622,111700.0,111690.0,0.20209012]
[1760583082562,0.56048622,111700.0,111690.0,0.26875718]
[1760583082734,0.56048622,111700.0,111690.0,0.38115718]
[1760583083712,0.56048622,111700.0,111690.0,0.20209012]
[1760583085244,0.56048622,111700.0,111690.0,0.08969012]
[1760583085613,0.56048622,111700.0,111690.0,0.21999682]
[1760583085767,0.56048622,111700.0,111690.0,0.20209012]
[1760583086155,0.56048622,111700.0,111690.0,0.08969012]
[1760583086371,0.56048622,111700.0,111690.0,0.21999682]
[1760583086728,0.56048622,111700.0,111690.0,0.20209012]
[1760583088285,0.96192142,111700.0,111690.0,0.20209012]
[1760583088495,0.17908309,111680.0,111670.0,0.05390929]
[1760583088671,0.94195349,111680.0,111670.0,0.14359941]
[1760583088883,0.56051829,111680.0,111670.0,0.43509854]
[1760583089453,0.56051829,111680.0,111670.0,0.32269854]
[1760583089817,0.56051829,111680.0,111670.0,0.43509854]
[1760583090190,0.3814352,111680.0,111670.0,0.43509854]
[1760583090503,0.3814352,111680.0,111670.0,0.32269854]
[1760583090705,0.3814352,111680.0,111670.0,0.43509854]
[1760583090912,0.3814352,111680.0,111670.0,0.32269854]
[1760583091113,0.3814352,111680.0,111670.0,0.43509854]
[1760583091350,0.3814352,111680.0,111670.0,0.32269854]
[1760583091676,0.3814352,111680.0,111670.0,0.43509854]
[1760583092262,0.3814352,111680.0,111670.0,0.32269854]
[1760583092468,0.56051829,111680.0,111670.0,0.43509854]
[1760583092880,0.56051829,111680.0,111670.0,0.32269854]
[1760583093077,0.56051829,111680.0,111670.0,0.43509854]
[1760583093403,0.17908309,111680.0,111670.0,0.43509854]
[1760583093619,0.56051829,111680.0,111670.0,0.43509854]
[1760583094197,0.56051829,111680.0,111670.0,0.32269854]
[1760583094621,0.56051829,111680.0,111670.0,0.43509854]
[1760583095203,0.56051829,111680.0,111670.0,0.26893854]
[1760583095406,0.56051829,111680.0,111670.0,0.38133854]
[1760583095607,0.56051829,111680.0,111670.0,0.26893854]
[1760583095811,0.56051829,111680.0,111670.0,0.38133854]
[1760583096016,0.56051829,111680.0,111670.0,0.26893854]
[1760583096214,0.56051829,111680.0,111670.0,0.38133854]
[1760583096677,0.56051829,111680.0,111670.0,0.26893854]
[1760583096875,0.56051829,111680.0,111670.0,0.38133854]
[1760583097078,0.56051829,111680.0,111670.0,0.26893854]
[1760583097297,0.56051829,111680.0,111670.0,0.38133854]
[1760583097447,0.56051829,111680.0,111670.0,0.26893854]
[1760583097638,0.3814352,111680.0,111670.0,0.38133854]
[1760583097997,0.3814352,111680.0,111670.0,0.26893854]
[1760583098563,0.3814352,111680.0,111670.0,0.38133854]
[1760583098748,0.3814352,111680.0,111670.0,0.26893854]
[1760583099195,0.3814352,111680.0,111670.0,0.38129854]
[1760583099351,0.3814352,111680.0,111670.0,0.26893854]
[1760583099549,0.3814352,111680.0,111670.0,0.38129854]
[1760583100376,0.59636081,111700.0,111690.0,0.17906706]
[1760583100582,2.91149222,111700.0,111690.0,0.08969012]
[1760583100785,0.56048622,111700.0,111690.0,0.10759682]
[1760583101035,0.56048622,111700.0,111690.0,0.21999682]
[1760583101212,0.56048622,111700.0,111690.0,0.20209012]
[1760583101411,0.96126524,111700.0,111690.0,0.20209012]
[1760583101616,0.96226524,111700.0,111690.0,0.20209012]
[1760583102186,0.96126524,111700.0,111690.0,0.20209012]
[1760583103348,0.94192142,111700.0,111690.0,0.20209012]
[1760583103653,0.94192142,111700.0,111690.0,0.08969012]
[1760583103855,0.56048622,111700.0,111690.0,0.21999682]
[1760583104077,0.56048622,111700.0,111690.0,0.20209012]
[1760583105338,0.56048622,111700.0,111690.0,0.08969012]
[1760583105531,0.56048622,111700.0,111690.0,0.21995682]
[1760583105738,0.17905102,111700.0,111690.0,0.20205012]
[1760583105944,0.54358934,111710.0,111690.0,0.26875718]
[1760583106167,0.55358934,111710.0,111700.0,0.20209012]
[1760583106771,0.54358934,111710.0,111700.0,0.20209012]
[1760583106971,0.179035,111710.0,111700.0,0.26874114]
[1760583107317,0.179035,111710.0,111700.0,0.20209012]
[1760583107527,0.5604702,111710.0,111700.0,0.20209012]
[1760583107683,0.5604702,111710.0,111700.0,0.08969012]
[1760583107870,0.5604702,111710.0,111700.0,0.39904624]
[1760583108077,0.5604702,111710.0,111700.0,0.38114114]
[1760583108980,0.5604702,111710.0,111700.0,0.38110114]
[1760583109176,0.62645296,111720.0,111700.0,0.38110114]
[1760583109385,0.179035,111710.0,111700.0,0.38110114]
[1760583109585,0.5604702,111710.0,111700.0,0.38110114]
[1760583110232,0.3814352,111710.0,111700.0,0.38110114]
[1760583110403,0.5604702,111710.0,111700.0,0.26874114]
[1760583110619,0.5604702,111710.0,111700.0,0.38110114]
[1760583111369,0.5604702,111710.0,111700.0,0.26874114]
[1760583111609,0.5604702,111710.0,111700.0,0.38110114]
[1760583111780,0.179035,111710.0,111700.0,0.38110114]
[1760583111986,0.17961822,111710.0,111700.0,0.26874114]
[1760583112187,0.17961822,111710.0,111700.0,0.38110114]
[1760583113325,0.17961822,111710.0,111700.0,0.20205012]
[1760583113697,0.56105342,111710.0,111700.0,0.38110114]
[1760583113895,0.17961822,111710.0,111700.0,0.38114114]
[1760583114104,0.56105342,111710.0,111700.0,0.38114114]
[1760583114278,0.56105342,111710.0,111700.0,0.26874114]
[1760583114477,0.56105342,111710.0,111700.0,0.38114114]
[1760583115382,0.56105342,111710.0,111700.0,0.08969012]
[1760583115583,0.17906495,111700.0,111680.0,0.17908029]
[1760583115790,0.3814352,111700.0,111690.0,0.26875718]
[1760583116342,0.3814352,111700.0,111690.0,0.38115718]
[1760583116672,0.18856997,111710.0,111700.0,0.17905102]
[1760583116673,0.56105414,111710.0,111700.0,0.17905102]
[1760583116847,0.56105414,111710.0,111700.0,0.38114114]
[1760583116997,0.56105414,111710.0,111700.0,0.26874114]
[1760583117196,0.56105414,111710.0,111700.0,0.20209012]
[1760583117399,0.56105414,111710.0,111700.0,0.08969012]
[1760583117600,0.56105414,111710.0,111700.0,0.10759522]
[1760583118063,0.56105414,111710.0,111700.0,0.21999522]
[1760583118276,0.56105414,111710.0,111700.0,0.20209012]
[1760583119514,0.56105414,111710.0,111700.0,0.08969012]
[1760583119699,0.56105414,111710.0,111700.0,0.21999522]
[1760583120002,0.17961894,111710.0,111700.0,0.20209012]
[1760583120203,0.56105414,111710.0,111700.0,0.20209012]
[1760583120390,0.56105414,111710.0,111700.0,0.26874114]
[1760583120542,0.56105414,111710.0,111700.0,0.38114114]
[1760583121963,0.38201842,111710.0,111700.0,0.26874114]
[1760583122372,0.38201842,111710.0,111700.0,0.38114114]
[1760583123564,0.56105342,111710.0,111700.0,0.26874114]
[1760583123760,0.56105342,111710.0,111700.0,0.08969012]
[1760583123960,0.56105342,111710.0,111700.0,0.20209012]
[1760583124160,0.56105342,111710.0,111700.0,0.08969012]
[1760583124441,0.57105342,111710.0,111700.0,0.20153087]
[1760583124654,0.57105342,111710.0,111700.0,0.08909087]
[1760583124655,0.95248862,111710.0,111700.0,0.08909087]
[1760583124858,0.17906592,111700.0,111690.0,0.0179067]
[1760583125032,0.94193632,111700.0,111690.0,0.22003682]
[1760583125193,0.94193632,111700.0,111690.0,0.20213012]
[1760583126033,0.17906592,111700.0,111690.0,0.38119718]
[1760583126234,0.56050112,111700.0,111690.0,0.38119718]
[1760583126694,0.56050112,111700.0,111690.0,0.08969012]
[1760583126923,0.56050112,111700.0,111690.0,0.22003682]
[1760583127126,0.56050112,111700.0,111690.0,0.08969012]
[1760583127333,0.56050112,111700.0,111690.0,0.10759682]
[1760583127456,0.94193632,111700.0,111690.0,0.10759682]
[1760583127661,0.94193632,111700.0,111690.0,0.22003682]
[1760583127859,0.94193632,111700.0,111690.0,0.08969012]
[1760583128064,0.94193632,111700.0,111690.0,0.10759682]
[1760583128419,0.94193632,111700.0,111690.0,0.26875718]
[1760583128564,0.94193632,111700.0,111690.0,0.38119718]
[1760583128753,0.3814352,111700.0,111690.0,0.38119718]
[1760583128950,0.56048622,111700.0,111690.0,0.26875718]
[1760583129374,0.56050881,111700.0,111690.0,0.26875718]
[1760583129608,0.56050881,111700.0,111690.0,0.38119718]
[1760583129764,0.21548959,111710.0,111690.0,0.38119718]
[1760583129965,0.57002776,111710.0,111700.0,0.20213012]
[1760583130412,0.58002776,111710.0,111700.0,0.20217012]
[1760583130833,0.6069455,111710.0,111700.0,0.08969012]
[1760583131040,0.6069455,111710.0,111700.0,0.20213012]
[1760583132648,0.6069455,111710.0,111700.0,0.08969012]
[1760583132833,0.6069455,111710.0,111670.0,0.31371547]
[1760583132834,0.17907571,111690.0,111670.0,0.31371547]
[1760583133052,0.17907571,111690.0,111680.0,0.26877321]
[1760583133437,0.17907571,111690.0,111680.0,0.38121321]
[1760583133695,0.17907571,111690.0,111680.0,0.26877321]
[1760583133896,0.17907571,111690.0,111680.0,0.38121321]
[1760583134578,0.56052935,111700.0,111690.0,0.17906706]
[1760583134816,0.56052935,111700.0,111690.0,0.26875718]
[1760583135042,0.56052935,111700.0,111690.0,0.38119718]
[1760583135467,0.56052935,111700.0,111690.0,0.26875718]
[1760583135928,0.17905102,111700.0,111690.0,0.26875718]
[1760583136157,0.56050881,111700.0,111690.0,0.38119718]
[1760583136373,0.17905102,111700.0,111690.0,0.38119718]
[1760583137831,0.17905102,111700.0,111690.0,0.26875718]
[1760583138009,0.17905102,111700.0,111690.0,0.20213012]
[1760583138709,0.56050881,111700.0,111690.0,0.20213012]
[1760583138914,0.56050881,111700.0,111690.0,0.08969012]
[1760583139112,0.17905102,111700.0,111690.0,0.20213012]
[1760583139320,0.56050881,111700.0,111690.0,0.20213012]
[1760583140161,0.56050881,111700.0,111690.0,0.08969012]
[1760583140361,0.17908309,111680.0,111670.0,0.07190139]
[1760583140568,0.38145779,111680.0,111670.0,0.45313064]
[1760583140776,0.38145779,111680.0,111670.0,0.08983941]
[1760583140777,0.56054088,111680.0,111670.0,0.08983941]
[1760583140976,0.57054088,111680.0,111670.0,0.08983941]
[1760583142286,0.57054088,111680.0,111670.0,0.27093854]
[1760583142708,0.57054088,111680.0,111670.0,0.38137854]
[1760583143576,0.38145779,111680.0,111670.0,0.38137854]
[1760583143777,0.38145779,111680.0,111670.0,0.26893854]
[1760583144108,0.56054088,111680.0,111670.0,0.26893854]
[1760583144237,0.56054088,111680.0,111670.0,0.38137854]
[1760583144859,0.56054088,111680.0,111670.0,0.26893854]
[1760583145263,0.56054088,111680.0,111670.0,0.38137854]
[1760583145486,0.56054088,111680.0,111670.0,0.26893854]
[1760583145896,0.20599672,111690.0,111680.0,0.17908309]
[1760583146113,0.58745451,111690.0,111680.0,0.38121321]
[1760583146264,0.58745451,111690.0,111680.0,0.26877321]
[1760583146461,0.58745451,111690.0,111680.0,0.38121321]
[1760583147143,0.40838251,111690.0,111680.0,0.26877321]
[1760583147280,0.02692472,111690.0,111680.0,0.26877321]
[1760583147488,2.351006,111700.0,111690.0,0.17906706]
[1760583147732,0.58742947,111700.0,111690.0,0.38123718]
[1760583147880,0.59742947,111700.0,111690.0,0.26875718]
[1760583148083,0.41837845,111700.0,111690.0,0.26875718]
[1760583148483,0.01,111700.0,111690.0,0.38123718]
[1760583148706,0.01,111700.0,111690.0,0.26875718]
[1760583148983,2.351006,111700.0,111690.0,0.38123718]
[1760583149186,2.351006,111700.0,111690.0,0.26875718]
[1760583149391,2.351006,111700.0,111690.0,0.38123718]
[1760583149624,2.351006,111700.0,111690.0,0.26875718]
[1760583149822,2.351006,111700.0,111690.0,0.38123718]